[Event "8th Gibraltar U16-Junior 2018"]
[Site "Caleta"]
[Date "2018.08.19"]
[Round "5"]
[White "Weersing, Sarah"]
[Black "Chouki, Aali"]
[Result "0-1"]
[ECO "A84"]
[WhiteElo "1608"]
[BlackElo "1413"]
[Annotator "NA"]
[PlyCount "132"]
[EventDate "2018.08.17"]
[EventType "swiss"]
[EventCountry "GGB"]
[SourceTitle "playchess.com"]
[Source "ChessBase"]
[SourceQuality "1"]
[TimeControl "6600+10"]

1. d4 {[%emt 0:00:00]} d5 {[%emt 0:00:00]} 2. Nf3 {[%emt 0:00:00]} e6 {[%emt 0:00:02]} 3. c4 {[%emt 0:00:03]} c6 {[%emt 0:00:05]} 4. Nc3 {[%emt 0:00:23]} f5 {[%emt 0:00:14]} 5. Bf4 {[%emt 0:01:27]} Nf6 {[%emt 0:00:43]} 6. e3 {[%emt 0:00:53]} Be7 {[%emt 0:00:27]} 7. Be2 {[%emt 0:00:42]} O-O {[%emt 0:00:30]} 8. O-O {[%emt 0:00:35]} Ne4 {[%emt 0:02:30]} 9. Qc2 {[%emt 0:05:13]} Nd7 {[%emt 0:01:18]} 10. Nd2 {[%emt 0:02:17]} g5 {[%emt 0:02:29]} 11. Be5 {[%emt 0:01:55]} Nxe5 {[%emt 0:01:48]} 12. dxe5 {[%emt 0:00:50]} Qe8 {[%emt 0:14:51]} 13. f3 {[%emt 0:05:06]} Nxd2 {[%emt 0:02:40]} 14. Qxd2 {[%emt 0:00:09]} h5 {[%emt 0:08:26]} 15. Kf2 {[%emt 0:06:32]} Qg6 {[%emt 0:02:48]} 16. Ke1 {[%emt 0:04:53]} f4 {[%emt 0:02:13]} 17. exf4 {[%emt 0:00:40]} Rxf4 {[%emt 0:00:30]} 18. Bd3 {[%emt 0:03:29]} Qg7 {[%emt 0:01:32]} 19. Qe3 {[%emt 0:08:59]} d4 {[%emt 0:00:14]} 20. Qe2 {[%emt 0:02:06]} dxc3 {[%emt 0:00:32]} 21. bxc3 {[%emt 0:00:19]} Bc5 {[%emt 0:01:13]} 22. g3 {[%emt 0:01:13]} Rf7 {[%emt 0:00:56]} 23. f4 {[%emt 0:01:07]} g4 {[%emt 0:00:29]} 24. Qc2 {[%emt 0:00:55]} Bd7 {[%emt 0:02:00]} 25. Bg6 {[%emt 0:01:42]} Rff8 {[%emt 0:01:17]} 26. Bxh5 {[%emt 0:00:53]} Be8 {[%emt 0:00:14]} 27. Bxe8 {[%emt 0:00:47]} Raxe8 {[%emt 0:00:10]} 28. Rh1 {[%emt 0:01:51]} Rf5 {[%emt 0:01:45]} 29. Qe2 {[%emt 0:02:18]} Rh5 {[%emt 0:09:01]} 30. Kd2 {[%emt 0:02:16]} Rh3 {[%emt 0:04:17]} 31. Raf1 {[%emt 0:02:01]} Qg6 {[%emt 0:02:19]} 32. Qd3 {[%emt 0:01:35]} Qf5 {[%emt 0:04:39]} 33. Qxf5 {[%emt 0:02:00]} exf5 {[%emt 0:00:06]} 34. Re1 {[%emt 0:00:19]} Kf7 {[%emt 0:00:13]} 35. Kc2 {[%emt 0:01:36]} Ke6 {[%emt 0:01:29]} 36. Rd1 {[%emt 0:01:24]} Re7 {[%emt 0:00:26]} 37. Rd2 {[%emt 0:03:24]} Rd7 {[%emt 0:00:10]} 38. Re2 {[%emt 0:00:51]} Rdh7 {[%emt 0:02:23]} 39. Kd2 {[%emt 0:02:16]} Rxg3 {[%emt 0:00:12]} 40. hxg3 {[%emt 0:01:33]} Rxh1 {[%emt 0:00:08]} 41. Rg2 {[%emt 0:00:50]} Rg1 {[%emt 0:00:48]} 42. Rh2 {[%emt 0:00:33]} Rxg3 {[%emt 0:00:26]} 43. Rh6+ {[%emt 0:00:10]} Kd7 {[%emt 0:00:09]} 44. Rf6 {[%emt 0:00:52]} Rf3 {[%emt 0:01:42]} 45. Rxf5 {[%emt 0:00:24]} Be3+ {[%emt 0:00:08]} 46. Ke2 {[%emt 0:00:59]} Rxf4 {[%emt 0:00:07]} 47. Rg5 {[%emt 0:02:26]} Re4 {[%emt 0:01:25]} 48. Rg7+ {[%emt 0:00:58]} Kc8 {[%emt 0:00:05]} 49. Kd3 {[%emt 0:00:46]} Rxe5 {[%emt 0:00:21]} 50. Rxg4 {[%emt 0:00:36]} Rg5 {[%emt 0:00:19]} 51. Re4 {[%emt 0:01:10]} Bb6 {[%emt 0:00:20]} 52. Re2 {[%emt 0:01:05]} Rg3+ {[%emt 0:00:24]} 53. Kc2 {[%emt 0:01:11]} Ba5 {[%emt 0:00:09]} 54. Re4 {[%emt 0:00:41]} Rxc3+ {[%emt 0:01:01]} 55. Kb2 {[%emt 0:00:09]} Rg3 {[%emt 0:01:31]} 56. Rh4 {[%emt 0:01:43]} Bc3+ {[%emt 0:00:26]} 57. Kc2 {[%emt 0:00:30]} Kc7 {[%emt 0:01:11]} 58. Re4 {[%emt 0:01:08]} Kd6 {[%emt 0:01:03]} 59. Rh4 {[%emt 0:02:07]} c5 {[%emt 0:01:28]} 60. Rh7 {[%emt 0:00:47]} Kc6 {[%emt 0:00:10]} 61. Rh6+ {[%emt 0:00:32]} Kc7 {[%emt 0:00:03]} 62. Rh7+ {[%emt 0:00:11]} Kb6 {[%emt 0:00:04]} 63. Rh6+ {[%emt 0:00:27]} Ka5 {[%emt 0:00:08]} 64. Rh7 {[%emt 0:01:18]} Ka6 {[%emt 0:00:02]} 65. a4 {[%emt 0:02:27]} Bd4 {[%emt 0:00:58]} 66. Rh6+ {[%emt 0:01:12]} b6 {[%emt 0:00:10]} 0-1

[Event "8th Gibraltar U16-Junior 2018"]
[Site "Caleta"]
[Date "2018.08.19"]
[Round "5"]
[White "Shepherd, Tom"]
[Black "Cortes Villa, Jaime"]
[Result "1-0"]
[ECO "B07"]
[WhiteElo "1531"]
[BlackElo "1700"]
[Annotator "NA"]
[PlyCount "66"]
[EventDate "2018.08.17"]
[EventType "swiss"]
[EventCountry "GGB"]
[SourceTitle "playchess.com"]
[Source "ChessBase"]
[SourceQuality "1"]
[TimeControl "6600+10"]

1. d4 {[%emt 0:00:00]} Nf6 {[%emt 0:00:00]} 2. Nf3 {[%emt 0:00:00]} g6 {[%emt 0:00:10]} 3. g3 {[%emt 0:00:00]} Bg7 {[%emt 0:00:09]} 4. Bg2 {[%emt 0:00:00]} O-O {[%emt 0:00:11]} 5. O-O {[%emt 0:00:02]} d6 {[%emt 0:00:07]} 6. Re1 {[%emt 0:00:03]} Nbd7 {[%emt 0:00:25]} 7. e4 {[%emt 0:00:10]} e5 {[%emt 0:07:09]} 8. Nc3 {[%emt 0:00:16]} c6 {[%emt 0:02:00]} 9. a4 {[%emt 0:00:13]} a5 {[%emt 0:00:32]} 10. h3 {[%emt 0:00:34]} Qc7 {[%emt 0:00:14]} 11. Bg5 {[%emt 0:02:35]} Re8 {[%emt 0:02:26]} 12. Qd2 {[%emt 0:02:08]} exd4 {[%emt 0:08:42]} 13. Nxd4 {[%emt 0:00:52]} Nc5 {[%emt 0:05:53]} 14. Bh6 {[%emt 0:06:25]} Nfd7 {[%emt 0:03:15]} 15. Bxg7 {[%emt 0:00:19]} Kxg7 {[%emt 0:00:08]} 16. Rad1 {[%emt 0:04:48]} Nb6 {[%emt 0:04:48]} 17. b3 {[%emt 0:02:55]} d5 {[%emt 0:07:22]} 18. exd5 {[%emt 0:11:05]} Rxe1+ {[%emt 0:00:05]} 19. Rxe1 {[%emt 0:00:08]} Nxd5 {[%emt 0:00:16]} 20. Nxd5 {[%emt 0:00:29]} cxd5 {[%emt 0:00:06]} 21. Nb5 {[%emt 0:00:59]} Qd8 {[%emt 0:00:11]} 22. Qd4+ {[%emt 0:01:30]} Qf6 {[%emt 0:00:12]} 23. Qxc5 {[%emt 0:00:26]} Be6 {[%emt 0:00:05]} 24. Qd4 {[%emt 0:00:17]} Rc8 {[%emt 0:00:17]} 25. Qxf6+ {[%emt 0:00:55]} Kxf6 {[%emt 0:00:06]} 26. Nd4 {[%emt 0:00:05]} Rc5 {[%emt 0:00:30]} 27. h4 {[%emt 0:01:09]} h5 {[%emt 0:00:37]} 28. f4 {[%emt 0:01:48]} Rc3 {[%emt 0:00:55]} 29. Kf2 {[%emt 0:00:38]} Rc5 {[%emt 0:00:14]} 30. Bf1 {[%emt 0:01:56]} Rc7 {[%emt 0:01:15]} 31. Bd3 {[%emt 0:00:12]} Rc5 {[%emt 0:00:12]} 32. Ke3 {[%emt 0:00:28]} Bg4 {[%emt 0:00:17]} 33. Kd2 {[%emt 0:00:27]} Rc8 {[%emt 0:01:35]} 1-0

[Event "8th Gibraltar U16-Junior 2018"]
[Site "Caleta"]
[Date "2018.08.19"]
[Round "5"]
[White "Schulz, Victor"]
[Black "Dharmasena, Gavith"]
[Result "1-0"]
[ECO "C54"]
[WhiteElo "1510"]
[BlackElo "1433"]
[Annotator "NA"]
[PlyCount "61"]
[EventDate "2018.08.17"]
[EventType "swiss"]
[EventCountry "GGB"]
[SourceTitle "playchess.com"]
[Source "ChessBase"]
[SourceQuality "1"]
[TimeControl "6600+10"]

1. e4 {[%emt 0:00:00]} e5 {[%emt 0:00:00]} 2. Nf3 {[%emt 0:00:00]} Nc6 {[%emt 0:00:06]} 3. Bc4 {[%emt 0:00:03]} Bc5 {[%emt 0:00:04]} 4. c3 {[%emt 0:00:05]} Nf6 {[%emt 0:00:04]} 5. d4 {[%emt 0:00:04]} exd4 {[%emt 0:00:30]} 6. cxd4 {[%emt 0:00:05]} Bb4+ {[%emt 0:00:13]} 7. Nc3 {[%emt 0:00:14]} Nxe4 {[%emt 0:00:43]} 8. O-O {[%emt 0:00:22]} Bxc3 {[%emt 0:00:47]} 9. d5 {[%emt 0:00:27]} Bf6 {[%emt 0:04:47]} 10. Re1 {[%emt 0:00:56]} O-O {[%emt 0:01:38]} 11. Rxe4 {[%emt 0:02:05]} Ne7 {[%emt 0:01:10]} 12. d6 {[%emt 0:06:03]} cxd6 {[%emt 0:00:23]} 13. Qxd6 {[%emt 0:03:21]} Nf5 {[%emt 0:00:08]} 14. Qd3 {[%emt 0:23:55]} d6 {[%emt 0:02:34]} 15. Qb3 {[%emt 0:04:04]} Ne7 {[%emt 0:01:47]} 16. Bd5 {[%emt 0:07:01]} Bf5 {[%emt 0:00:14]} 17. Re1 {[%emt 0:01:10]} Nxd5 {[%emt 0:00:53]} 18. Qxd5 {[%emt 0:00:11]} Qd7 {[%emt 0:00:11]} 19. Nd4 {[%emt 0:06:17]} Rfe8 {[%emt 0:01:53]} 20. Bf4 {[%emt 0:01:13]} Be6 {[%emt 0:02:56]} 21. Nxe6 {[%emt 0:00:46]} Rxe6 {[%emt 0:01:13]} 22. Rxe6 {[%emt 0:00:42]} Qxe6 {[%emt 0:01:00]} 23. Qxb7 {[%emt 0:01:13]} Re8 {[%emt 0:00:22]} 24. Be3 {[%emt 0:01:18]} Bd4 {[%emt 0:00:13]} 25. Re1 {[%emt 0:02:24]} Qxa2 {[%emt 0:01:07]} 26. Qb5 {[%emt 0:05:47]} Qe6 {[%emt 0:00:23]} 27. Kf1 {[%emt 0:00:18]} Qe5 {[%emt 0:04:17]} 28. Qa4 {[%emt 0:02:31]} Re7 {[%emt 0:07:35]} 29. Bd2 {[%emt 0:02:53]} Qf6 {[%emt 0:01:47]} 30. Qe8+ {[%emt 0:00:11]} Rxe8 {[%emt 0:00:02]} 31. Rxe8# {[%emt 0:00:03]} 1-0

[Event "8th Gibraltar U16-Junior 2018"]
[Site "Caleta"]
[Date "2018.08.19"]
[Round "5"]
[White "Cox, Ben"]
[Black "Onslow, Teddy"]
[Result "0-1"]
[ECO "C11"]
[WhiteElo "1466"]
[BlackElo "1669"]
[Annotator "NA"]
[PlyCount "62"]
[EventDate "2018.08.17"]
[EventType "swiss"]
[EventCountry "GGB"]
[SourceTitle "playchess.com"]
[Source "ChessBase"]
[SourceQuality "1"]
[TimeControl "6600+10"]

1. e4 {[%emt 0:00:00]} e6 {[%emt 0:01:05]} 2. d4 {[%emt 0:00:00]} d5 {[%emt 0:00:03]} 3. Nc3 {[%emt 0:00:00]} Nf6 {[%emt 0:00:05]} 4. e5 {[%emt 0:00:03]} Nfd7 {[%emt 0:00:06]} 5. f4 {[%emt 0:00:08]} c5 {[%emt 0:00:03]} 6. Nf3 {[%emt 0:00:04]} Nc6 {[%emt 0:00:30]} 7. Be3 {[%emt 0:00:08]} Qc7 {[%emt 0:04:49]} 8. Qd2 {[%emt 0:09:45]} a6 {[%emt 0:02:05]} 9. Qf2 {[%emt 0:06:20]} cxd4 {[%emt 0:03:49]} 10. Nxd4 {[%emt 0:00:34]} Bb4 {[%emt 0:04:25]} 11. Qd2 {[%emt 0:05:26]} O-O {[%emt 0:10:03]} 12. Be2 {[%emt 0:02:07]} Nxd4 {[%emt 0:03:05]} 13. Bxd4 {[%emt 0:00:28]} f6 {[%emt 0:00:45]} 14. O-O {[%emt 0:14:57]} Bc5 {[%emt 0:06:42]} 15. Bg4 {[%emt 0:05:41]} Re8 {[%emt 0:18:48]} 16. Rae1 {[%emt 0:23:06]} b6 {[%emt 0:10:47]} 17. Kh1 {[%emt 0:02:11]} f5 {[%emt 0:06:06]} 18. Bxc5 {[%emt 0:07:09]} Qxc5 {[%emt 0:02:39]} 19. Bh5 {[%emt 0:03:53]} Rd8 {[%emt 0:02:16]} 20. g4 {[%emt 0:06:16]} Bb7 {[%emt 0:16:07]} 21. gxf5 {[%emt 0:00:57]} d4+ {[%emt 0:01:54]} 22. Bf3 {[%emt 0:00:06]} dxc3 {[%emt 0:02:06]} 23. bxc3 {[%emt 0:00:51]} Bxf3+ {[%emt 0:01:45]} 24. Rxf3 {[%emt 0:00:07]} Nxe5 {[%emt 0:02:59]} 25. Qg2 {[%emt 0:03:25]} Nxf3 {[%emt 0:03:58]} 26. Qxf3 {[%emt 0:00:15]} Qd5 {[%emt 0:01:01]} 27. Qxd5 {[%emt 0:00:51]} exd5 {[%emt 0:00:07]} 28. Re5 {[%emt 0:01:02]} Rac8 {[%emt 0:00:21]} 29. Re3 {[%emt 0:00:25]} d4 {[%emt 0:00:23]} 30. cxd4 {[%emt 0:00:19]} Rxd4 {[%emt 0:00:23]} 31. Re6 {[%emt 0:00:47]} Rxc2 {[%emt 0:00:15]} 0-1

[Event "8th Gibraltar U16-Junior 2018"]
[Site "Caleta"]
[Date "2018.08.19"]
[Round "5"]
[White "Bansal, Saahil"]
[Black "Samworth Calvier, Juju"]
[Result "1/2-1/2"]
[ECO "A96"]
[WhiteElo "1454"]
[BlackElo "1816"]
[Annotator "NA"]
[PlyCount "93"]
[EventDate "2018.08.17"]
[EventType "swiss"]
[EventCountry "GGB"]
[SourceTitle "playchess.com"]
[Source "ChessBase"]
[SourceQuality "1"]
[TimeControl "6600+10"]

1. d4 {[%emt 0:00:00]} e6 {[%emt 0:00:00]} 2. c4 {[%emt 0:00:00]} f5 {[%emt 0:00:00]} 3. g3 {[%emt 0:00:39]} Nf6 {[%emt 0:00:04]} 4. Bg2 {[%emt 0:00:12]} Be7 {[%emt 0:00:17]} 5. Nf3 {[%emt 0:01:09]} O-O {[%emt 0:00:08]} 6. O-O {[%emt 0:01:03]} d6 {[%emt 0:00:03]} 7. Nc3 {[%emt 0:00:10]} a5 {[%emt 0:00:03]} 8. b3 {[%emt 0:00:30]} Ne4 {[%emt 0:00:22]} 9. Qc2 {[%emt 0:03:48]} Nxc3 {[%emt 0:00:06]} 10. Qxc3 {[%emt 0:00:11]} Nd7 {[%emt 0:00:05]} 11. Bb2 {[%emt 0:01:50]} Nf6 {[%emt 0:01:08]} 12. Nd2 {[%emt 0:12:37]} e5 {[%emt 0:02:03]} 13. dxe5 {[%emt 0:01:22]} dxe5 {[%emt 0:00:12]} 14. Rfd1 {[%emt 0:29:22]} Nd7 {[%emt 0:00:40]} 15. Bd5+ {[%emt 0:00:40]} Kh8 {[%emt 0:03:18]} 16. Nf3 {[%emt 0:04:59]} Bf6 {[%emt 0:00:28]} 17. Qc2 {[%emt 0:15:03]} e4 {[%emt 0:00:25]} 18. Ne5 {[%emt 0:07:09]} c6 {[%emt 0:00:44]} 19. Nf7+ {[%emt 0:03:26]} Rxf7 {[%emt 0:00:30]} 20. Bxf7 {[%emt 0:00:47]} Bxb2 {[%emt 0:00:06]} 21. Qxb2 {[%emt 0:00:17]} Qe7 {[%emt 0:00:07]} 22. Bh5 {[%emt 0:01:06]} Nf6 {[%emt 0:00:06]} 23. Qd2 {[%emt 0:08:07]} Be6 {[%emt 0:00:19]} 24. Qd6 {[%emt 0:01:03]} Qxd6 {[%emt 0:00:26]} 25. Rxd6 {[%emt 0:00:11]} Bg8 {[%emt 0:00:01]} 26. Rxf6 {[%emt 0:01:06]} gxf6 {[%emt 0:00:04]} 27. Rd1 {[%emt 0:01:15]} Kg7 {[%emt 0:00:05]} 28. e3 {[%emt 0:00:47]} Kh6 {[%emt 0:00:32]} 29. Be2 {[%emt 0:00:06]} Be6 {[%emt 0:00:13]} 30. Rd6 {[%emt 0:01:10]} Re8 {[%emt 0:00:04]} 31. Kg2 {[%emt 0:01:36]} Kg6 {[%emt 0:00:09]} 32. h4 {[%emt 0:00:28]} h5 {[%emt 0:00:07]} 33. Kf1 {[%emt 0:00:17]} Re7 {[%emt 0:00:10]} 34. Ke1 {[%emt 0:00:35]} Bc8 {[%emt 0:00:21]} 35. Kd2 {[%emt 0:01:07]} Rd7 {[%emt 0:00:06]} 36. Rxd7 {[%emt 0:00:36]} Bxd7 {[%emt 0:00:08]} 37. c5 {[%emt 0:00:04]} Be8 {[%emt 0:00:11]} 38. Bc4 {[%emt 0:04:34]} Bf7 {[%emt 0:00:11]} 39. Kc3 {[%emt 0:00:10]} Bxc4 {[%emt 0:00:27]} 40. Kxc4 {[%emt 0:00:06]} Kf7 {[%emt 0:00:06]} 41. b4 {[%emt 0:03:02]} axb4 {[%emt 0:00:04]} 42. Kxb4 {[%emt 0:00:13]} Ke6 {[%emt 0:00:03]} 43. Kc4 {[%emt 0:01:12]} Ke5 {[%emt 0:00:27]} 44. a3 {[%emt 0:00:10]} Ke6 {[%emt 0:00:06]} 45. Kd4 {[%emt 0:00:02]} Kd7 {[%emt 0:00:31]} 46. a4 {[%emt 0:00:14]} Ke6 {[%emt 0:00:11]} 47. Kc3 {[%emt 0:01:31]} 1/2-1/2

[Event "8th Gibraltar U16-Junior 2018"]
[Site "Caleta"]
[Date "2018.08.19"]
[Round "5"]
[White "Seleznev, Egor"]
[Black "Kirupakaran, Vishnu"]
[Result "1-0"]
[ECO "B22"]
[WhiteElo "1388"]
[BlackElo "1786"]
[Annotator "NA"]
[PlyCount "111"]
[EventDate "2018.08.17"]
[EventType "swiss"]
[EventCountry "GGB"]
[SourceTitle "playchess.com"]
[Source "ChessBase"]
[SourceQuality "1"]
[TimeControl "6600+10"]

1. e4 {[%emt 0:00:00]} c5 {[%emt 0:00:00]} 2. c3 {[%emt 0:00:02]} Nf6 {[%emt 0:00:46]} 3. e5 {[%emt 0:00:14]} Nd5 {[%emt 0:00:09]} 4. d4 {[%emt 0:00:27]} cxd4 {[%emt 0:00:05]} 5. cxd4 {[%emt 0:00:21]} Nc6 {[%emt 0:00:04]} 6. Nc3 {[%emt 0:01:01]} Nxc3 {[%emt 0:00:26]} 7. bxc3 {[%emt 0:00:11]} d6 {[%emt 0:00:06]} 8. f4 {[%emt 0:01:47]} Bf5 {[%emt 0:26:22]} 9. Bd3 {[%emt 0:03:49]} Bxd3 {[%emt 0:11:55]} 10. Qxd3 {[%emt 0:00:55]} e6 {[%emt 0:00:57]} 11. Nf3 {[%emt 0:06:06]} d5 {[%emt 0:10:26]} 12. O-O {[%emt 0:04:46]} Be7 {[%emt 0:00:15]} 13. f5 {[%emt 0:03:41]} O-O {[%emt 0:00:24]} 14. Be3 {[%emt 0:01:40]} Na5 {[%emt 0:02:41]} 15. Nd2 {[%emt 0:02:45]} Kh8 {[%emt 0:09:07]} 16. Rf3 {[%emt 0:03:49]} Bg5 {[%emt 0:02:57]} 17. Raf1 {[%emt 0:03:20]} Bxe3+ {[%emt 0:02:18]} 18. Rxe3 {[%emt 0:02:33]} exf5 {[%emt 0:00:12]} 19. Qxf5 {[%emt 0:01:35]} Qc8 {[%emt 0:01:00]} 20. Qh5 {[%emt 0:01:02]} Qe6 {[%emt 0:00:15]} 21. Rh3 {[%emt 0:02:23]} Qg6 {[%emt 0:01:06]} 22. Rxf7 {[%emt 0:05:58]} Qxh5 {[%emt 0:00:26]} 23. Rxf8+ {[%emt 0:00:13]} Rxf8 {[%emt 0:00:05]} 24. Rxh5 {[%emt 0:00:14]} g6 {[%emt 0:00:58]} 25. Rh3 {[%emt 0:00:31]} Kg7 {[%emt 0:00:17]} 26. Rf3 {[%emt 0:02:20]} Rc8 {[%emt 0:00:15]} 27. Kf2 {[%emt 0:00:48]} b5 {[%emt 0:00:27]} 28. Ke2 {[%emt 0:00:54]} Nb7 {[%emt 0:00:14]} 29. Kd3 {[%emt 0:00:39]} a5 {[%emt 0:00:05]} 30. Rf1 {[%emt 0:00:35]} b4 {[%emt 0:00:33]} 31. Rc1 {[%emt 0:01:05]} Nd8 {[%emt 0:00:24]} 32. Nb3 {[%emt 0:00:45]} Ne6 {[%emt 0:00:32]} 33. g3 {[%emt 0:00:59]} a4 {[%emt 0:00:38]} 34. Nd2 {[%emt 0:00:52]} Rf8 {[%emt 0:01:17]} 35. cxb4 {[%emt 0:05:19]} Rf2 {[%emt 0:00:05]} 36. Ke3 {[%emt 0:03:09]} Rxh2 {[%emt 0:00:10]} 37. Rd1 {[%emt 0:02:19]} Ng5 {[%emt 0:00:57]} 38. b5 {[%emt 0:04:13]} Rh3 {[%emt 0:00:53]} 39. Rg1 {[%emt 0:05:11]} Ne6 {[%emt 0:00:26]} 40. b6 {[%emt 0:00:56]} Nd8 {[%emt 0:00:10]} 41. Nf3 {[%emt 0:01:45]} h6 {[%emt 0:00:43]} 42. Rc1 {[%emt 0:02:03]} Rxg3 {[%emt 0:00:24]} 43. Rc7+ {[%emt 0:00:45]} Kf8 {[%emt 0:00:14]} 44. b7 {[%emt 0:00:35]} Nxb7 {[%emt 0:00:08]} 45. Rxb7 {[%emt 0:00:17]} g5 {[%emt 0:00:18]} 46. Kf2 {[%emt 0:00:52]} Rg4 {[%emt 0:04:59]} 47. Rh7 {[%emt 0:04:12]} Rf4 {[%emt 0:00:00]} 48. Kg3 {[%emt 0:02:07]} Re4 {[%emt 0:00:00]} 49. Rxh6 {[%emt 0:01:01]} Kg7 {[%emt 0:00:00]} 50. Nxg5 {[%emt 0:02:24]} Re2 {[%emt 0:00:00]} 51. Rh2 {[%emt 0:00:16]} Re3+ {[%emt 0:00:00]} 52. Nf3 {[%emt 0:00:40]} a3 {[%emt 0:00:00]} 53. Rc2 {[%emt 0:00:48]} Kg6 {[%emt 0:00:00]} 54. Kf2 {[%emt 0:00:56]} Re4 {[%emt 0:00:00]} 55. Re2 {[%emt 0:00:42]} Rg4 {[%emt 0:00:00]} 56. e6 {[%emt 0:00:30]} 1-0

[Event "8th Gibraltar U16-Junior 2018"]
[Site "Caleta"]
[Date "2018.08.19"]
[Round "5"]
[White "Dhanwani, Aryan"]
[Black "Rayner, Hugo"]
[Result "1/2-1/2"]
[ECO "B30"]
[WhiteElo "1169"]
[BlackElo "1391"]
[Annotator "NA"]
[PlyCount "49"]
[EventDate "2018.08.17"]
[EventType "swiss"]
[EventCountry "GGB"]
[SourceTitle "playchess.com"]
[Source "ChessBase"]
[SourceQuality "1"]
[TimeControl "6600+10"]

1. e4 {[%emt 0:00:10]} c5 {[%emt 0:00:01]} 2. Nf3 {[%emt 0:00:32]} d6 {[%emt 0:00:09]} 3. Nc3 {[%emt 0:00:23]} g6 {[%emt 0:00:19]} 4. Bc4 {[%emt 0:01:21]} Bg7 {[%emt 0:00:20]} 5. O-O {[%emt 0:01:35]} Nc6 {[%emt 0:00:56]} 6. d3 {[%emt 0:01:35]} Bg4 {[%emt 0:00:20]} 7. h3 {[%emt 0:01:00]} Bxf3 {[%emt 0:00:52]} 8. Qxf3 {[%emt 0:00:16]} Nf6 {[%emt 0:00:13]} 9. Be3 {[%emt 0:03:55]} O-O {[%emt 0:00:19]} 10. Qe2 {[%emt 0:01:25]} a6 {[%emt 0:00:56]} 11. a3 {[%emt 0:01:05]} b5 {[%emt 0:04:24]} 12. Ba2 {[%emt 0:07:02]} Rc8 {[%emt 0:00:00]} 13. Qd2 {[%emt 0:06:01]} Re8 {[%emt 0:00:02]} 14. Rab1 {[%emt 0:04:14]} e6 {[%emt 0:00:41]} 15. Ne2 {[%emt 0:08:57]} Qa5 {[%emt 0:07:51]} 16. Qxa5 {[%emt 0:03:22]} Nxa5 {[%emt 0:00:01]} 17. Ng3 {[%emt 0:09:03]} d5 {[%emt 0:00:50]} 18. exd5 {[%emt 0:08:53]} Nxd5 {[%emt 0:00:41]} 19. Bxd5 {[%emt 0:06:21]} exd5 {[%emt 0:00:10]} 20. b4 {[%emt 0:02:36]} d4 {[%emt 0:01:13]} 21. Bd2 {[%emt 0:08:27]} cxb4 {[%emt 0:02:55]} 22. Bxb4 {[%emt 0:00:38]} Nc6 {[%emt 0:01:35]} 23. Rb2 {[%emt 0:02:36]} f5 {[%emt 0:04:01]} 24. Re1 {[%emt 0:05:14]} Rxe1+ {[%emt 0:03:49]} 25. Bxe1 {[%emt 0:00:14]} 1/2-1/2

[Event "8th Gibraltar U16-Junior 2018"]
[Site "Caleta"]
[Date "2018.08.19"]
[Round "5"]
[White "Harbinson, Alec Ryan"]
[Black "Mahtani, Johan"]
[Result "1/2-1/2"]
[ECO "C50"]
[WhiteElo "1043"]
[BlackElo "1166"]
[Annotator "NA"]
[PlyCount "88"]
[EventDate "2018.08.17"]
[EventType "swiss"]
[EventCountry "GGB"]
[SourceTitle "playchess.com"]
[Source "ChessBase"]
[SourceQuality "1"]
[TimeControl "6600+10"]

1. e4 {[%emt 0:00:00]} e5 {[%emt 0:00:00]} 2. Nf3 {[%emt 0:00:00]} Nc6 {[%emt 0:00:01]} 3. Bc4 {[%emt 0:00:00]} d6 {[%emt 0:00:08]} 4. d3 {[%emt 0:00:06]} Bg4 {[%emt 0:00:06]} 5. h3 {[%emt 0:00:19]} Bxf3 {[%emt 0:00:07]} 6. Qxf3 {[%emt 0:00:19]} Qf6 {[%emt 0:00:05]} 7. Qxf6 {[%emt 0:00:11]} Nxf6 {[%emt 0:00:07]} 8. Bg5 {[%emt 0:00:43]} Be7 {[%emt 0:00:10]} 9. Bxf6 {[%emt 0:00:40]} Bxf6 {[%emt 0:00:12]} 10. c3 {[%emt 0:00:32]} O-O {[%emt 0:00:17]} 11. b4 {[%emt 0:00:37]} Rad8 {[%emt 0:00:12]} 12. Bd5 {[%emt 0:00:29]} Rb8 {[%emt 0:00:33]} 13. Bxc6 {[%emt 0:00:37]} bxc6 {[%emt 0:00:09]} 14. O-O {[%emt 0:00:26]} Rbd8 {[%emt 0:00:06]} 15. Rd1 {[%emt 0:01:04]} d5 {[%emt 0:00:09]} 16. Na3 {[%emt 0:00:27]} dxe4 {[%emt 0:00:42]} 17. dxe4 {[%emt 0:00:20]} Rd6 {[%emt 0:00:20]} 18. Nc4 {[%emt 0:00:53]} Re6 {[%emt 0:01:23]} 19. Rd3 {[%emt 0:02:17]} Rd8 {[%emt 0:00:13]} 20. Rxd8+ {[%emt 0:00:12]} Bxd8 {[%emt 0:00:18]} 21. Rd1 {[%emt 0:00:30]} Be7 {[%emt 0:01:37]} 22. Rd7 {[%emt 0:01:33]} c5 {[%emt 0:00:19]} 23. bxc5 {[%emt 0:00:44]} Bxc5 {[%emt 0:00:34]} 24. Rxc7 {[%emt 0:00:42]} Bf8 {[%emt 0:00:10]} 25. Rxa7 {[%emt 0:00:29]} f6 {[%emt 0:00:10]} 26. Ne3 {[%emt 0:02:16]} Rc6 {[%emt 0:00:20]} 27. c4 {[%emt 0:00:31]} Bc5 {[%emt 0:00:13]} 28. Nf5 {[%emt 0:01:55]} g6 {[%emt 0:00:44]} 29. Ra8+ {[%emt 0:00:28]} Kf7 {[%emt 0:00:11]} 30. Ng3 {[%emt 0:02:00]} Bb4 {[%emt 0:00:19]} 31. Ra4 {[%emt 0:00:59]} Bd2 {[%emt 0:00:15]} 32. f3 {[%emt 0:03:35]} Rb6 {[%emt 0:01:06]} 33. Kh2 {[%emt 0:04:17]} Bf4 {[%emt 0:00:20]} 34. h4 {[%emt 0:00:57]} h5 {[%emt 0:00:39]} 35. Kh3 {[%emt 0:01:11]} Rb1 {[%emt 0:01:14]} 36. a3 {[%emt 0:02:12]} f5 {[%emt 0:01:23]} 37. exf5 {[%emt 0:06:51]} gxf5 {[%emt 0:00:14]} 38. Rb4 {[%emt 0:07:40]} Rd1 {[%emt 0:01:24]} 39. Rb7+ {[%emt 0:13:41]} Ke6 {[%emt 0:00:05]} 40. Rb6+ {[%emt 0:01:21]} Kf7 {[%emt 0:00:22]} 41. Rb7+ {[%emt 0:00:01]} Ke6 {[%emt 0:00:01]} 42. Rb6+ {[%emt 0:00:10]} Kf7 {[%emt 0:00:02]} 43. Rb7+ {[%emt 0:00:15]} Ke6 {[%emt 0:00:02]} 44. Rb6+ {[%emt 0:00:24]} Kf7 {[%emt 0:00:29]} 1/2-1/2